bitfinex-derivatives/quotes_ETHF0:USTF0_20260221
["timestamp","ask_amount","ask_price","bid_price","bid_amount"]
[1771654483207,1.18980394,1966.2,1965.4,1.15641642]
[1771654505932,1.18980394,1966.2,1965.5,2.81284299]
[1771654506227,1.18980394,1966.2,1965.6,1.15641642]
[1771654507832,1.18980394,1966.2,1965.7,2.69658603]
[1771654508029,1.18980394,1966.2,1965.8,1.04015946]
[1771654513035,1.09456381,1966.3,1965.8,1.04015946]
[1771654514338,1.09456381,1966.3,1965.6,1.09469564]
[1771654518240,1.09456381,1966.2,1965.5,8.04525718]
[1771654518435,1.09456381,1966.2,1965.5,9.13995282]
[1771654519739,1.09456381,1966.2,1965.5,2.75112221]
[1771654520141,1.09456381,1966.2,1965.6,1.09469564]
[1771654523944,1.09456381,1966.0,1965.4,7.48352625]
[1771654524341,1.09456381,1966.0,1965.4,1.09469564]
[1771654527747,1.09456381,1966.0,1965.3,6.38883061]
[1771654527956,1.09456381,1965.8,1965.2,1.09905614]
[1771654532557,1.09456381,1965.8,1965.4,1.09469564]
[1771654532757,1.09456381,1966.2,1965.4,1.09469564]
[1771654534656,1.09456381,1966.2,1965.6,1.09469564]
[1771654546465,1.09456381,1966.2,1965.5,0.9814756]
[1771654546671,1.09456381,1966.2,1965.3,0.9814756]
[1771654546971,1.02491688,1966.0,1965.3,0.9814756]
[1771654547567,1.02491688,1966.0,1965.2,0.9858361]
[1771654548073,1.65642657,1966.1,1965.2,0.9858361]
[1771654548074,1.02491688,1965.8,1965.2,0.9858361]
[1771654548270,1.02491688,1965.6,1965.2,0.0043605]
[1771654548570,1.02491688,1965.6,1965.0,0.9814756]
[1771654549472,1.02491688,1965.6,1965.0,0.98683596]
[1771654551269,1.02491688,1965.6,1965.2,0.9814756]
[1771654551469,1.02491688,1966.0,1965.2,0.9814756]
[1771654552070,1.02491688,1966.0,1965.4,0.9814756]
[1771654565981,1.02491688,1965.8,1965.0,6.39951302]
[1771654566180,1.02491688,1965.8,1965.1,0.9814756]
[1771654577080,0.8891845,1966.0,1965.1,0.9814756]
[1771654581487,0.8891845,1966.0,1965.2,0.91659554]
[1771654589995,0.8891845,1966.0,1965.3,0.91659554]
[1771654600299,0.8891845,1966.0,1965.1,7.28683636]
[1771654600499,5.157708,1966.0,1965.0,0.00536036]
[1771654600692,0.84963375,1965.9,1965.0,0.00536036]
[1771654601292,0.84963375,1965.9,1965.0,0.89804406]
[1771654602898,0.84963375,1965.8,1965.0,0.00536036]
[1771654603097,0.84963375,1965.7,1964.8,0.8926837]
[1771654603293,0.84963375,1965.7,1964.7,0.8926837]
[1771654604301,0.84963375,1965.7,1964.7,0.89640411]
[1771654617303,0.84963375,1965.7,1964.9,0.8926837]
[1771654627914,0.84963375,1965.7,1965.1,2.50315856]
[1771654628309,0.84963375,1965.7,1965.1,0.8459086]
[1771654628710,0.84963375,1965.7,1965.0,2.51018774]
[1771654632718,0.84963375,1965.7,1965.1,0.85293778]
[1771654633015,0.84963375,1965.7,1965.0,2.51018774]
[1771654635717,0.84963375,1965.7,1965.1,0.85293778]
[1771654637319,0.84963375,1965.7,1964.9,0.85293778]
[1771654641318,0.82880459,1965.5,1964.8,1.65724996]
[1771654641514,0.82880459,1965.5,1964.8,0.85293778]
[1771654641719,0.82880459,1965.3,1964.7,0.85665819]
[1771654647324,0.82880459,1965.3,1964.7,0.00372041]
[1771654647521,0.82880459,1965.3,1964.7,0.85665819]
[1771654672349,0.82880459,1965.3,1964.7,0.00372041]
[1771654673351,0.79599358,1965.1,1964.5,0.78330463]
[1771654674350,0.79599358,1965.1,1964.5,0.78766913]
[1771654691072,0.78038292,1965.3,1964.6,0.80598265]
[1771654691367,0.78038292,1965.7,1964.6,0.80598265]
[1771654693160,0.78038292,1965.7,1964.9,0.80598265]
[1771654712881,0.78038292,1965.7,1965.2,0.80598265]
[1771654713082,0.78038292,1965.8,1965.2,0.80598265]
[1771654714787,0.78038292,1966.1,1965.2,0.80598265]
[1771654729295,0.78038292,1966.1,1965.5,0.80556918]
[1771654731595,0.82939653,1966.3,1965.5,0.80556918]
[1771654744803,0.82939653,1966.3,1965.5,7.19972184]
[1771654744998,0.82939653,1966.3,1965.6,0.80556918]
[1771654746601,0.82939653,1966.3,1965.5,7.19972184]
[1771654749801,0.82939653,1966.3,1965.5,0.80556918]
[1771654749997,0.82939653,1966.3,1965.5,2.46210984]
[1771654756608,0.82939653,1966.3,1965.6,0.76528877]
[1771654760905,5.93716312,1966.4,1965.5,1.65654066]
[1771654760906,0.82836696,1966.1,1965.5,0.76528877]
[1771654779528,0.82836696,1966.1,1965.4,1.65654066]
[1771654779727,0.7598961,1965.9,1965.2,7.21005678]
[1771654781728,0.7598961,1965.9,1965.2,0.81590412]
[1771654786831,0.7598961,1965.7,1965.1,0.81590412]
[1771654802230,1.65654066,1966.0,1964.8,7.99269082]
[1771654802231,0.7598961,1965.5,1964.9,6.39415266]
[1771654802435,0.7598961,1965.5,1964.8,0.81590412]
[1771654804339,0.7598961,1965.3,1964.7,0.81590412]
[1771654813438,0.7812279,1965.6,1964.8,0.76071879]
[1771654814941,0.7812279,1965.6,1965.1,0.76071879]
[1771654826857,0.7812279,1965.6,1964.9,0.76071879]
[1771654831356,0.7812279,1965.7,1964.9,0.76071879]
[1771654831556,0.7812279,1965.8,1965.1,0.76071879]
[1771654856769,5.08130312,1966.0,1965.1,0.76071879]
[1771654856967,5.08130312,1966.0,1965.2,0.74588707]
[1771654857173,0.81834442,1966.0,1965.2,0.74588707]
[1771654857472,0.81834442,1966.0,1965.3,0.74588707]
[1771654867781,0.81834442,1966.0,1965.2,0.80758293]
[1771654873894,0.81834442,1966.0,1965.3,0.77246499]
[1771654875195,0.81834442,1966.0,1965.5,0.77246499]
[1771654891005,0.81834442,1966.0,1965.3,0.77246499]
[1771654900115,0.81834442,1966.0,1965.2,6.39415266]
[1771654900415,0.8084672,1965.9,1965.2,0.80297501]
[1771654901218,0.8084672,1965.8,1965.2,0.80297501]
[1771654904316,2.46551222,1965.8,1965.1,0.80297501]
[1771654904520,0.8084672,1965.5,1965.0,0.80297501]
[1771654906321,0.8084672,1965.5,1964.8,1.65704502]
[1771654906322,0.8084672,1965.5,1964.9,0.80297501]
[1771654909120,1.65704502,1965.4,1964.7,0.80297501]
[1771654909319,0.8084672,1965.3,1964.7,0.80297501]
[1771654914224,0.8084672,1965.3,1964.6,0.80297501]
[1771654920826,0.8084672,1965.3,1964.7,0.80297501]
[1771654922232,0.8084672,1965.3,1964.9,0.80297501]
[1771654923536,0.8084672,1965.7,1964.9,0.80297501]
[1771654924233,0.8084672,1965.5,1964.9,0.80297501]
[1771654928834,0.8084672,1965.5,1965.1,0.76443453]
[1771654929040,0.77271958,1965.8,1965.1,0.76443453]
[1771654931344,0.77271958,1965.7,1965.1,0.76443453]
[1771654946760,0.77271958,1965.8,1965.1,0.76443453]
[1771654952570,0.77271958,1965.8,1965.0,0.76443453]
[1771654954771,0.77271958,1965.7,1965.0,0.76443453]
[1771654961770,0.73695853,1965.6,1964.9,0.76800473]
[1771654963074,0.73695853,1965.6,1964.8,0.76800473]
[1771654969378,0.73695853,1965.4,1964.8,0.76800473]
[1771654973084,0.73695853,1965.4,1964.6,1.23934554]
[1771654973285,0.73695853,1965.4,1964.7,0.76800473]
[1771654991300,0.81481111,1965.3,1964.7,0.76800473]
[1771654991495,4.26501623,1965.4,1964.7,0.76800473]
[1771654991800,0.81481111,1965.4,1964.7,0.76800473]
[1771654993903,0.81481111,1965.4,1964.8,0.81496356]
[1771655004309,5.07982734,1965.5,1965.0,0.81496356]
[1771655004909,0.81481111,1965.4,1965.0,0.81496356]
[1771655009911,0.81481111,1965.4,1964.8,0.81496356]
[1771655014913,0.81481111,1965.3,1964.8,0.81496356]
[1771655016822,0.81481111,1965.3,1964.7,0.81496356]
[1771655019425,0.81481111,1965.3,1964.6,1.23934554]
[1771655019426,0.81481111,1965.3,1964.6,1.9803254]
[1771655022524,0.81481111,1965.3,1964.7,0.74097986]
[1771655028527,1.65786265,1965.2,1964.2,1.65786265]
[1771655028731,1.65786265,1965.2,1963.9,0.74097986]
[1771655028732,0.80695894,1964.3,1963.9,0.74097986]
[1771655029029,4.26501623,1964.7,1963.9,0.74097986]
[1771655029030,0.80695894,1964.5,1963.9,0.74097986]
[1771655029229,6.70060865,1964.4,1963.9,0.74097986]
[1771655029430,0.80695894,1964.4,1963.9,0.74097986]
[1771655029636,0.81076435,1964.4,1963.9,0.74563038]
[1771655029927,6.10060578,1964.3,1963.9,0.74563038]
[1771655030130,0.81076435,1964.4,1963.9,0.74563038]
[1771655036342,0.81076435,1964.4,1963.6,0.74177986]
[1771655036343,0.80695894,1964.1,1963.6,0.74177986]
[1771655036641,0.80695894,1964.3,1963.6,0.74177986]
[1771655036838,0.80695894,1964.3,1963.7,0.74097986]
[1771655037342,0.80695894,1964.3,1963.7,0.74588716]
[1771655043146,0.80695894,1964.1,1963.7,0.0049073]
[1771655043346,0.80695894,1964.1,1963.7,0.74588716]
[1771655048155,0.80695894,1964.1,1963.7,0.0049073]
[1771655049156,0.80695894,1964.1,1963.6,0.80440936]
[1771655050059,0.80695894,1964.1,1963.6,0.80845547]
[1771655053460,0.77567626,1963.9,1963.6,0.00484611]
[1771655053656,0.77567626,1963.9,1963.4,0.80360936]
[1771655054560,0.77567626,1963.9,1963.4,0.81009972]
[1771655058064,6.1672156,1963.8,1963.4,0.81009972]
[1771655058263,0.77567626,1963.9,1963.4,0.81009972]
[1771655068468,6.10164713,1963.8,1963.4,0.81009972]
[1771655068772,0.77567626,1963.9,1963.4,0.81009972]
[1771655068971,6.10164713,1963.8,1963.4,0.81009972]
[1771655069171,0.77567626,1963.9,1963.4,0.81009972]
[1771655069373,6.10212568,1963.8,1963.4,0.81009972]
[1771655069573,0.77567626,1963.9,1963.4,0.81009972]
[1771655069774,6.10210551,1963.8,1963.4,0.81009972]
[1771655069974,0.77567626,1963.9,1963.4,0.81009972]
[1771655070176,6.10210584,1963.8,1963.4,0.81009972]
[1771655070375,0.77567626,1963.9,1963.4,0.81009972]
[1771655070575,6.10215891,1963.8,1963.4,0.81009972]
[1771655070776,0.77567626,1963.9,1963.4,0.81009972]
[1771655071575,0.77567626,1964.2,1963.4,0.81009972]
[1771655071767,6.81432984,1964.1,1963.4,0.81009972]
[1771655071972,6.81432984,1964.0,1963.4,0.81009972]
[1771655072275,6.81432984,1963.9,1963.4,0.81009972]
[1771655072472,0.77567626,1963.9,1963.4,0.81009972]
[1771655081083,6.80179288,1963.8,1963.4,0.81009972]
[1771655081278,0.76957537,1963.8,1963.4,0.81009972]
[1771655090591,0.76957537,1964.0,1963.4,0.81009972]
[1771655090790,6.73891875,1963.9,1963.4,0.81009972]
[1771655090990,0.76957537,1963.9,1963.4,0.81009972]
[1771655096894,6.72484061,1963.8,1963.4,0.81009972]
[1771655097096,0.76957537,1963.8,1963.4,0.81009972]
[1771655102699,0.76957537,1964.1,1963.4,0.81009972]
[1771655103001,0.76957537,1963.9,1963.4,0.81009972]
[1771655109008,0.71680385,1964.1,1963.4,0.81009972]
[1771655109210,0.71680385,1964.3,1963.5,0.70353357]
[1771655109414,5.88660972,1964.2,1963.5,0.70353357]
[1771655109714,0.71680385,1964.3,1963.5,0.70353357]
[1771655114910,0.71680385,1964.1,1963.5,0.70353357]
[1771655127521,0.71680385,1964.1,1963.6,0.70353357]
[1771655128123,0.71680385,1964.3,1963.6,0.70353357]
[1771655128828,0.71680385,1964.1,1963.6,0.70353357]
[1771655152953,0.7391383,1964.3,1963.7,0.70974799]
[1771655182872,0.7391383,1964.3,1963.6,0.7555246]
[1771655185778,0.7391383,1964.3,1963.8,0.7555246]
[1771655195489,0.7391383,1964.3,1963.7,6.41492582]
[1771655195986,0.7391383,1964.3,1963.6,6.41492582]
[1771655198192,0.7391383,1964.3,1963.6,7.09922052]
[1771655198588,0.7391383,1964.3,1963.7,0.6842947]
[1771655204596,0.7391383,1964.3,1963.6,7.09922052]
[1771655210103,0.7391383,1964.3,1963.7,0.6842947]
[1771655223508,0.7391383,1964.3,1963.6,6.41492582]
[1771655223714,0.71422721,1964.1,1963.4,7.10571088]
[1771655224110,0.71422721,1964.1,1963.4,0.69078506]
[1771655228716,0.71422721,1964.1,1963.4,0.00649036]
[1771655231022,0.71422721,1964.1,1963.4,0.66599401]
[1771655237929,0.71422721,1964.1,1963.5,0.65950365]
[1771655265651,4.27393332,1964.4,1963.5,0.65950365]
[1771655265852,6.4266809,1964.3,1963.7,0.64111369]
[1771655266056,6.4266809,1964.2,1963.7,0.64111369]
[1771655266253,0.64667938,1964.2,1963.7,0.64111369]
[1771655267956,0.64667938,1964.2,1963.5,0.64111369]
[1771655283676,5.85326948,1964.1,1963.5,0.64111369]
[1771655283875,0.64667938,1964.0,1963.5,0.64111369]
[1771655289788,1.65993755,1964.3,1963.5,0.64111369]
[1771655290087,0.69870293,1964.1,1963.5,0.64111369]
[1771655295590,0.69870293,1964.1,1963.7,0.68053513]
[1771655295796,0.69870293,1964.3,1963.9,0.68053513]
[1771655299199,0.70250834,1964.4,1963.9,0.68053513]
[1771655299394,0.00380541,1964.4,1963.9,0.68053513]
[1771655299595,0.70250834,1964.4,1963.9,0.68053513]
[1771655308797,0.70250834,1964.4,1963.7,0.68053513]
[1771655325119,0.70250834,1964.4,1963.7,7.0865066]
[1771655326220,0.70250834,1964.4,1963.8,0.68089946]
[1771655330428,0.70250834,1964.4,1963.7,0.68089946]
[1771655339438,0.70250834,1964.4,1963.6,0.68089946]
[1771655339637,0.70250834,1964.4,1963.5,0.68089946]
[1771655339838,0.62899694,1964.3,1963.4,7.09336129]
[1771655340234,0.62899694,1964.3,1963.4,0.68738982]
[1771655340937,0.62899694,1964.3,1963.5,0.68089946]
[1771655341531,4.27513418,1964.2,1963.4,0.68738982]
[1771655341732,0.62899694,1964.1,1963.4,0.68738982]
[1771655369169,0.65129497,1964.0,1963.4,0.68738982]
[1771655390583,0.66674927,1963.9,1963.4,0.68738982]
[1771655398392,0.66674927,1963.7,1963.3,0.67752588]
[1771655399495,0.66674927,1963.7,1963.3,0.68142861]
[1771655409100,0.66674927,1963.7,1963.3,0.00390273]
[1771655409295,0.66674927,1963.7,1963.2,0.68500953]
[1771655409796,0.66674927,1963.7,1962.9,8.06594824]
[1771655409797,0.66674927,1963.7,1962.9,6.40597147]
[1771655410001,0.66674927,1963.7,1963.0,0.68500953]
[1771655410203,0.66674927,1963.7,1963.0,0.6887837]
[1771655410504,0.64801012,1963.5,1963.0,0.6887837]
[1771655413703,0.64801012,1963.5,1962.8,0.68500953]
[1771655414807,0.64801012,1963.5,1962.8,0.69027086]
[1771655419810,0.64801012,1963.5,1962.9,0.68500953]
[1771655420007,0.64801012,1963.7,1962.9,0.68500953]
[1771655430823,0.64801012,1963.9,1963.0,0.68500953]
[1771655435126,0.64801012,1963.8,1963.0,0.68500953]
[1771655444331,0.63028748,1963.7,1963.0,0.68500953]
[1771655447733,0.63028748,1963.7,1962.9,6.40597147]
[1771655447734,0.63028748,1963.7,1962.9,0.63801588]
[1771655447932,0.63028748,1963.6,1962.9,0.63801588]
[1771655449633,0.63028748,1963.4,1962.8,0.00526133]
[1771655449835,0.63028748,1963.4,1962.8,0.64327721]
[1771655450334,0.63028748,1963.2,1962.8,0.64327721]
[1771655456538,0.63028748,1963.2,1962.6,0.63801588]
[1771655457539,0.63028748,1963.2,1962.6,0.64403584]
[1771655460539,0.63028748,1963.0,1962.2,0.63801588]
[1771655461437,0.63415065,1963.0,1962.2,0.64445202]
[1771655464946,5.74678449,1962.9,1962.2,0.00643614]
[1771655465136,0.63415065,1963.0,1962.2,0.00643614]
[1771655465137,0.63028748,1962.8,1962.2,0.00643614]
[1771655465334,0.63028748,1962.7,1961.5,0.63801588]
[1771655466442,0.63028748,1962.7,1961.5,0.64213496]
[1771655466944,0.63028748,1962.5,1961.5,0.64213496]
[1771655475351,0.00386317,1963.0,1962.3,0.62304414]
[1771655475551,0.63876695,1963.0,1962.3,0.62304414]
[1771655479948,0.63490378,1962.7,1962.3,0.62304414]
[1771655480148,2.29733323,1962.6,1962.3,0.62304414]
[1771655480343,2.29733323,1962.6,1961.9,0.33263681]
[1771655481248,0.63490378,1962.5,1961.9,0.33263681]
[1771655484654,0.63490378,1962.3,1961.9,0.33263681]
[1771655486953,2.29733323,1962.4,1961.9,0.33263681]
[1771655487654,0.63490378,1962.4,1961.9,0.33263681]
[1771655488749,0.63490378,1962.5,1961.9,0.33263681]
[1771655488954,0.63490378,1962.7,1962.0,0.32543403]
[1771655491154,0.63876695,1963.0,1962.2,0.32550067]
[1771655491349,0.63490378,1962.8,1962.2,0.32550067]
[1771655504162,0.61420711,1962.7,1962.0,0.30785284]
[1771655516284,0.61420711,1962.7,1962.0,8.32553637]
[1771655518188,0.61420711,1962.5,1962.0,0.30785284]
[1771655518382,0.61420711,1962.5,1961.9,8.29693507]
[1771655521488,0.61420711,1962.3,1961.8,8.2941772]
[1771655521992,0.61420711,1962.3,1961.8,0.27649367]
[1771655525389,0.61420711,1962.3,1961.7,8.01768353]
[1771655525591,0.61420711,1962.3,1961.7,0.27976565]
[1771655536004,0.61420711,1962.3,1961.6,9.95630089]
[1771655536303,0.61420711,1962.3,1961.7,0.27618791]
[1771655541714,0.61420711,1962.3,1961.6,0.27353123]
[1771655548122,0.61420711,1962.3,1961.7,0.26857672]
[1771655552429,0.61420711,1962.3,1961.6,8.01768353]
[1771655552725,0.61420711,1962.3,1961.6,8.2820719]
[1771655560534,0.61420711,1962.3,1961.5,0.00411908]
[1771655560734,0.5884971,1962.1,1961.5,0.00411908]
[1771655562539,5.82112524,1962.0,1961.5,0.00411908]
[1771655562731,0.5884971,1961.9,1961.5,0.00411908]
[1771655577744,1.66309682,1962.3,1960.9,5.80882209]
[1771655577745,0.5884971,1961.7,1960.9,5.80882209]
[1771655578040,1.66309682,1961.8,1960.8,0.57701913]
[1771655578041,0.5884971,1961.3,1960.8,0.57701913]
[1771655578244,0.5884971,1961.8,1960.8,0.57701913]
[1771655578446,0.5884971,1961.6,1960.8,0.57701913]
[1771655578742,0.5884971,1961.6,1960.8,0.58297325]
[1771655578743,0.59418946,1961.6,1960.8,0.58297325]
[1771655581044,0.00569236,1961.6,1960.9,0.57701913]
[1771655585643,0.58231589,1961.6,1960.9,0.57701913]
[1771655599052,0.58231589,1961.6,1961.0,0.60433016]
[1771655599246,0.00569236,1961.6,1961.1,0.60433016]
[1771655599650,0.58449007,1961.8,1961.1,0.60433016]
[1771655600156,0.58425956,1962.2,1961.4,0.60433016]
[1771655600656,0.58925443,1962.2,1961.4,0.60433016]
[1771655601752,0.00499487,1962.2,1961.4,0.60433016]
[1771655601952,0.58445035,1962.2,1961.4,0.60433016]
[1771655603857,0.58445035,1962.2,1961.7,0.60433016]
[1771655608662,0.58048779,1962.0,1961.3,0.60433016]
[1771655611861,0.58048779,1962.0,1961.5,0.60433016]
[1771655612065,0.58691507,1962.2,1961.5,0.60433016]
[1771655618373,2.24990428,1962.2,1961.5,0.60433016]
[1771655618574,0.57329435,1962.1,1961.5,0.60433016]
[1771655633285,0.57329435,1961.9,1961.5,0.60433016]
[1771655641393,0.57329435,1962.1,1961.5,0.60433016]
[1771655641699,1.66798408,1962.2,1961.8,0.60569115]
[1771655641700,0.57828922,1962.2,1961.8,0.60569115]
[1771655653909,0.00499487,1962.2,1961.8,0.60569115]
[1771655655710,0.57444688,1962.2,1961.8,0.60569115]
[1771655695939,0.00499487,1962.2,1961.8,0.60569115]
[1771655696141,0.56170543,1963.0,1961.9,0.56687662]
[1771655696344,0.56170543,1962.8,1961.9,0.56687662]
[1771655697045,0.56768411,1962.8,1961.9,0.56687662]
[1771655720263,0.59343201,1962.6,1961.9,0.56687662]
[1771655722455,0.59343201,1962.4,1961.8,0.58630348]
[1771655726362,1.66306162,1962.5,1961.6,0.58630348]
[1771655726363,0.59343201,1962.2,1961.6,0.58630348]
[1771655727564,0.59343201,1962.1,1961.6,0.58630348]
[1771655728459,1.66306162,1962.5,1961.4,0.58630348]
[1771655728460,0.59343201,1961.9,1961.4,0.58630348]
[1771655733862,0.59343201,1962.2,1961.6,0.58630348]
[1771655734067,0.59343201,1962.4,1961.7,0.58630348]
[1771655743173,0.59343201,1962.4,1961.8,1.66306162]
[1771655743378,0.59343201,1962.4,1961.9,0.59278641]
[1771655748989,0.59343201,1962.4,1961.5,0.59278641]
[1771655749187,0.55138869,1962.0,1961.5,0.59278641]
[1771655754895,0.55138869,1962.2,1961.5,0.59278641]
[1771655756101,0.55138869,1962.2,1961.7,0.59278641]
[1771655760197,2.21445031,1962.4,1961.7,0.59278641]
[1771655760394,0.55138869,1962.5,1961.7,0.59278641]
[1771655760600,6.39206994,1962.4,1961.7,0.59278641]
[1771655760801,0.55138869,1962.4,1961.7,0.59278641]
[1771655761005,0.55138869,1962.4,1961.9,0.59278641]
[1771655764299,0.55138869,1962.7,1962.1,0.59278641]
[1771655764506,0.55138869,1962.6,1962.1,0.59278641]
[1771655764703,0.55736737,1962.8,1962.3,0.59278641]
[1771655764902,0.55736737,1962.8,1962.3,0.59834594]
[1771655765700,0.00597868,1962.8,1962.3,0.59834594]
[1771655767404,0.00597868,1962.8,1962.5,0.58903072]
[1771655767604,0.56336822,1963.0,1962.5,0.58903072]
[1771655768710,0.56751832,1963.0,1962.5,0.58903072]
[1771655768905,0.56751832,1963.0,1962.4,0.60299938]
[1771655770709,0.56218993,1962.9,1962.4,0.60299938]
[1771655770909,0.56218993,1962.9,1962.3,0.60855891]
[1771655775817,0.56218993,1962.7,1962.3,0.00555953]
[1771655776217,0.56218993,1962.7,1962.3,0.60855891]
[1771655785824,0.56218993,1962.7,1962.3,0.00555953]
[1771655787329,0.56218993,1962.7,1962.0,0.60299938]
[1771655787727,0.56218993,1962.4,1961.8,0.60299938]
[1771655788223,0.56218993,1962.4,1961.8,0.60949587]
[1771655790029,0.56218993,1962.4,1961.8,0.00649649]
[1771655790428,0.56218993,1962.4,1961.8,0.60949587]
[1771655815244,5.78547242,1962.3,1961.8,0.60949587]
[1771655815438,0.56218993,1962.4,1961.8,0.60949587]
[1771655815641,5.7856481,1962.3,1961.8,0.60949587]
[1771655815846,0.56218993,1962.4,1961.8,0.60949587]
[1771655816052,6.37410275,1962.3,1961.8,0.60949587]
[1771655816252,0.58845433,1962.3,1961.8,0.60949587]
[1771655817251,5.79530307,1962.2,1961.8,0.60949587]
[1771655817452,0.58845433,1962.3,1961.8,0.60949587]
[1771655817643,5.79530299,1962.2,1961.8,0.60949587]
[1771655817951,0.58845433,1962.3,1961.8,0.60949587]
[1771655818153,5.79530307,1962.2,1961.8,0.60949587]
[1771655818449,0.58845433,1962.3,1961.8,0.60949587]
[1771655818651,5.79554931,1962.2,1961.8,0.60949587]
[1771655818851,0.58845433,1962.3,1961.8,0.60949587]
[1771655819050,5.79554931,1962.2,1961.8,0.60949587]
[1771655819251,0.58845433,1962.3,1961.8,0.60949587]
[1771655819454,5.79565767,1962.2,1961.8,0.60949587]
[1771655819650,0.58845433,1962.3,1961.8,0.60949587]
[1771655819850,5.79565871,1962.2,1961.8,0.60949587]
[1771655820050,0.58845433,1962.3,1961.8,0.60949587]
[1771655820251,5.79565871,1962.2,1961.8,0.60949587]
[1771655820452,0.58845433,1962.3,1961.8,0.60949587]
[1771655820754,6.38471024,1962.2,1961.8,0.60949587]
[1771655820955,0.58899848,1962.2,1961.8,0.60949587]
[1771655822152,0.58899848,1962.2,1961.8,0.57613421]
[1771655822453,0.58898239,1962.0,1961.3,0.56963772]
[1771655822751,0.58896738,1961.8,1961.0,0.56963772]
[1771655822957,11.72768427,1961.9,1961.0,0.56963772]
[1771655822958,0.58981533,1961.6,1961.0,0.56963772]
[1771655823258,0.58981533,1961.4,1961.0,0.56963772]
[1771655823452,0.58981533,1961.4,1961.0,0.57491902]
[1771655824656,0.00452633,1961.6,1961.0,0.57491902]
[1771655831162,0.5905938,1961.9,1961.0,0.57491902]
[1771655832159,0.5949974,1961.9,1961.0,0.57491902]
[1771655832765,0.0044036,1961.9,1961.0,0.57491902]
[1771655837567,0.5949974,1961.9,1961.0,0.57491902]
[1771655843769,0.5949974,1961.9,1961.2,0.58436966]
[1771655844970,0.0044036,1961.9,1961.2,0.58436966]
[1771655847885,0.0044036,1961.9,1961.5,0.58436966]
[1771655854783,0.5949974,1961.9,1961.5,0.58436966]
[1771655857384,0.5949974,1961.9,1961.3,0.5644141]
[1771655859987,0.58986303,1961.7,1961.3,0.5644141]
[1771655860591,0.58986303,1961.7,1961.2,0.5644141]
[1771655861887,0.58986303,1961.7,1961.0,0.0052813]
[1771655861888,0.58986303,1961.6,1961.0,0.0052813]
[1771655862086,0.58986303,1961.6,1961.0,0.5696954]
[1771655867494,0.0044036,1961.9,1961.2,0.5644141]
[1771655867690,5.81050708,1961.8,1961.2,0.5644141]
[1771655867892,0.59426663,1961.9,1961.2,0.5644141]
[1771655869388,0.58986303,1961.6,1961.2,0.5644141]
[1771655873296,0.58986303,1961.7,1961.2,0.5644141]
[1771655882303,0.58986303,1961.7,1961.0,0.5696954]
[1771655883404,0.58986303,1961.7,1961.2,0.5644141]
[1771655887709,0.58986303,1961.7,1961.1,0.58587543]
[1771655887710,0.59448652,1961.6,1961.1,0.58587543]
[1771655892016,0.6035484,1961.8,1961.2,0.59307647]
[1771655892315,6.42278674,1961.7,1961.2,0.59307647]
[1771655892511,0.6035484,1961.7,1961.2,0.59307647]
[1771655897521,5.82026563,1961.6,1961.2,0.59307647]
[1771655897821,0.6035484,1961.7,1961.2,0.59307647]
[1771655898020,5.82026428,1961.6,1961.2,0.59307647]
[1771655898216,0.6035484,1961.7,1961.2,0.59307647]
[1771655898416,5.82089179,1961.6,1961.2,0.59307647]
[1771655898711,0.6035484,1961.7,1961.2,0.59307647]
[1771655898912,5.82089318,1961.6,1961.2,0.59307647]
[1771655899118,0.6035484,1961.7,1961.2,0.59307647]
[1771655899318,5.82093005,1961.6,1961.2,0.59307647]
[1771655899513,0.6035484,1961.7,1961.2,0.59307647]
[1771655899721,6.41301045,1961.6,1961.2,0.59307647]
[1771655899921,0.59121247,1961.6,1961.2,0.59307647]
[1771655901822,0.59121247,1961.6,1961.0,0.59835777]
[1771655910530,0.58774252,1961.4,1961.0,0.59835777]
[1771655923841,4.5299864,1961.8,1961.0,0.59835777]
[1771655924047,0.58494403,1961.6,1961.0,0.59835777]
[1771655925143,4.5299864,1961.8,1961.0,0.59835777]
[1771655925144,4.85964942,1961.8,1961.0,0.59835777]
[1771655925443,5.81886131,1961.7,1961.0,0.59835777]
[1771655925646,0.58460302,1961.8,1961.0,0.59835777]
[1771655925846,5.81877239,1961.7,1961.0,0.59835777]
[1771655926045,0.58459852,1961.8,1961.0,0.59835777]
[1771655926250,5.81885521,1961.7,1961.0,0.59835777]
[1771655926549,0.58459852,1961.8,1961.0,0.59835777]
[1771655926739,5.81832641,1961.7,1961.0,0.59835777]
[1771655926938,0.58459852,1961.8,1961.0,0.59835777]
[1771655927141,5.81831707,1961.7,1961.0,0.59835777]
[1771655927344,0.58459852,1961.8,1961.0,0.59835777]
[1771655927544,5.8178078,1961.7,1961.0,0.59835777]
[1771655927744,0.58459852,1961.8,1961.0,0.59835777]
[1771655927946,5.81780533,1961.7,1961.0,0.59835777]
[1771655928248,0.58459852,1961.8,1961.0,0.59835777]
[1771655928444,5.81730603,1961.7,1961.0,0.59835777]
[1771655928645,0.58459852,1961.8,1961.0,0.59835777]
[1771655928846,5.81730699,1961.7,1961.0,0.59835777]
[1771655929047,0.58459852,1961.8,1961.0,0.59835777]
[1771655929347,5.81730666,1961.7,1961.0,0.59835777]
[1771655929547,0.58459852,1961.8,1961.0,0.59835777]
[1771655929748,5.81691001,1961.7,1961.0,0.59835777]
[1771655930047,0.58459852,1961.8,1961.0,0.59835777]
[1771655930249,5.81690818,1961.7,1961.0,0.59835777]
[1771655930448,0.58459852,1961.8,1961.0,0.59835777]
[1771655930650,5.81651262,1961.7,1961.0,0.59835777]
[1771655930849,0.58459852,1961.8,1961.0,0.59835777]
[1771655931050,5.81651338,1961.7,1961.0,0.59835777]
[1771655931250,0.58459852,1961.8,1961.0,0.59835777]
[1771655931453,6.39510613,1961.7,1961.0,0.59835777]
[1771655931751,0.57894287,1961.7,1961.0,0.59835777]
[1771655932251,0.0044036,1961.9,1961.0,0.59835777]
[1771655932451,6.39465992,1961.8,1961.0,0.59835777]
[1771655932652,0.57893869,1961.8,1961.0,0.59835777]
[1771655933747,5.81483917,1961.7,1961.0,0.59835777]
[1771655933955,0.58220434,1961.7,1961.0,0.59835777]
[1771655935248,0.0044036,1961.9,1961.2,0.58128195]
[1771655935656,0.58898629,1962.3,1961.2,0.58128195]
[1771655935856,0.58898629,1962.2,1961.2,0.58128195]
[1771655936150,5.81562753,1962.1,1961.2,0.58128195]
[1771655936350,5.82568949,1962.0,1961.2,0.58128195]
[1771655936657,0.0037806,1962.0,1961.2,0.58128195]
[1771655938154,0.0037806,1962.0,1961.5,0.58128195]
[1771655940449,0.58459164,1962.3,1961.5,0.58128195]
[1771655940759,11.59518966,1962.4,1961.5,0.58128195]
[1771655941658,11.59966101,1962.4,1961.5,0.58128195]
[1771655941955,0.58810123,1962.3,1961.5,0.58128195]
[1771655955158,11.58136819,1962.4,1961.5,0.58128195]
[1771655955765,0.57007942,1962.3,1961.5,0.58128195]
[1771655955965,0.57007942,1962.3,1961.6,1.66432099]
[1771655956263,0.57007942,1962.3,1961.7,0.59722516]
[1771655968174,5.82424738,1962.2,1961.7,0.59722516]
[1771655968470,0.57007942,1962.1,1961.7,0.59722516]
[1771655980685,0.5757034,1962.3,1961.7,0.59722516]
[1771655980886,5.82804137,1962.2,1961.7,0.59722516]
[1771655981082,11.5870271,1962.4,1961.7,0.59722516]